Cogmind - Beta 10.2 @@@ ROGUE MODE // 2022.03.12 @ 15:05:45 Player: Yanche Result: Destroyed by P-60 Hacker with Shock Rifle Performance ------------- Evolutions (4) 2000 Regions Visited (7) 1400 Robots Destroyed (36) 180 Value Destroyed (1009) 1009 Prototype IDs (6) 120 Alien Tech Used (0) 0 Bonus (263) 263 TOTAL SCORE: 4972 Bonus ------- High Alert Combat Kills 13 Follower Combat Kills 35 Aligned with FarCom 300 Friendly Fire -85 Cogmind --------- Core Integrity 0/850 Matter 300/300 Energy 100/100 System Corruption 0% Temperature Cool (0) Movement Core (550) Ox10 Location -6/Factory Parts ------- > --- POWER (2) -------- (None) > --- PROPULSION (3) --- (None) > --- UTILITY (7) ------ High-capacity Storage Unit Advanced Visual Processing Unit Enhanced Optical Array Advanced Terrain Scan Processor > --- WEAPON (3) ------- (None) > --- INVENTORY (12) --- Improved Heat Sink Medium Matter Pod (100) Skeleton Box Heavy EM Pulse Gun Heavy Particle Cannon Peak State ------------ > --- POWER ------------ Micro Nuclear Core Light Angular Momentum Engine > --- PROPULSION ------- Wheel > --- UTILITY ---------- High-capacity Storage Unit High-capacity Battery Advanced Visual Processing Unit Enhanced Optical Array Improved Terrain Scanner Advanced Terrain Scan Processor Improved Targeting Computer > --- WEAPON ----------- EM Pulse Cannon Proton Cannon Flak Cannon > --- INVENTORY -------- Improved Heat Sink Medium Matter Pod Skeleton Box Heavy EM Pulse Gun Heavy Particle Cannon [Rating: 39] Favorites ----------- Power Light Ion Engine Engine Light Ion Engine Power Core Micro Nuclear Core Propulsion Wheel Wheel Wheel Utility Sensor Array Device Sensor Array Storage Large Storage Unit Processor Terrain Scan Processor Protection Hardened Medium Armor Plating Weapon Light Assault Rifle Energy Gun Medium Laser Energy Cannon Proton Cannon Ballistic Gun Light Assault Rifle Ballistic Cannon Flak Cannon Launcher Rocket Launcher Build | -11 -10 -10 -10 -9 -8 -7 -6 ------- Run | Scr Mat Min Exi Min Mat Fac Fac Slots Evolved 8 | . . . . . 4 2 2 Power 1 | . . . . . 1 . . Propulsion 1 | . . . . . . . 1 Utility 5 | . . . . . 2 2 1 Weapon 1 | . . . . . 1 . . Parts Attached 50 | 6 1 1 1 1 23 7 10 Power 6 | 1 . . . . 3 1 1 Engine 4 | 1 . . . . 2 . 1 Core 2 | . . . . . 1 1 . Reactor . | . . . . . . . . Propulsion 8 | 2 . 1 . . 4 . 1 Treads . | . . . . . . . . Leg . | . . . . . . . . Wheel 8 | 2 . 1 . . 4 . 1 Hover . | . . . . . . . . Flight . | . . . . . . . . Utility 19 | 1 1 . 1 1 6 5 4 Device 5 | . 1 . . . 3 1 . Storage 7 | 1 . . 1 1 2 1 1 Processor 5 | . . . . . 1 2 2 Hackware . | . . . . . . . . Protection 2 | . . . . . . 1 1 Artifact . | . . . . . . . . Weapon 17 | 2 . . . . 10 1 4 Energy Gun 6 | 1 . . . . 4 . 1 Energy Cannon 2 | . . . . . . . 2 Ballistic Gun 6 | 1 . . . . 4 1 . Ballistic Cannon 1 | . . . . . . . 1 Launcher 2 | . . . . . 2 . . Special Weapon . | . . . . . . . . Impact Weapon . | . . . . . . . . Slashing Weapon . | . . . . . . . . Piercing Weapon . | . . . . . . . . Special Melee Weapon . | . . . . . . . . Unidentified Prototypes 2 | . . . . . 1 1 . Parts Lost 29 | . . . . . 11 2 16 Power 5 | . . . . . 2 . 3 Propulsion 6 | . . . . . 3 1 2 Utility 6 | . . . . . 1 . 5 Weapon 12 | . . . . . 5 1 6 Highest Loss Streak 6 | . . . . . 5 2 6 Average Slot Usage (%) 95 | . 91 100 100 100 94 99 74 Engine 10 | . 14 14 14 14 13 7 3 Core 3 | . . . . . 4 7 4 Wheel 18 | . 28 28 28 28 15 14 6 Device 14 | . 6 14 14 14 17 15 9 Storage 9 | . 14 14 14 14 8 7 8 Processor 9 | . . . . . 9 15 21 Protection 2 | . . . . . . 7 2 Energy Gun 10 | . 14 14 14 14 12 7 2 Ballistic Gun 12 | . 14 14 14 14 12 14 5 Naked Turns . | . . . . . . . . Heaviest Build 73 | 10 11 11 23 39 48 67 73 Greatest Support 26 | 26 26 26 26 26 26 20 20 Greatest Overweight (x) 16 | 1 . . . 1 4 6 16 Average Overweight (x) 1 | . . . . . 1 2 5 Largest Inventory Capacity 12 | 6 6 6 10 12 12 12 12 Average Capacity 9 | 5 6 6 6 11 9 11 12 Most Carried 12 | 2 6 6 7 12 11 12 12 Average Carried 8 | 1 4 5 6 9 8 10 8 Final Capacity 12 | 6 6 6 10 12 10 12 12 Final Carried 12 | 2 6 6 7 12 9 12 5 Class Distribution -------------------- 44% | Scavenger-Skirmisher 31% | Mutant 23% | Skirmisher Dominant Class ---------------- Mutant | -10/Materials Mutant | -10/Mines Mutant | -10/Exiles Skirmisher | -9/Mines Skirmisher | -8/Materials Scavenger-Skirmisher | -7/Factory Scavenger-Skirmisher | -6/Factory Resources | -11 -10 -10 -10 -9 -8 -7 -6 ----------- Run | Scr Mat Min Exi Min Mat Fac Fac Matter Collected 1079 | 233 35 26 10 20 448 104 203 Remotely . | . . . . . . . . Salvage Created 1275 | . 134 12 . . 850 90 189 Parts 68 | . 10 3 . . 47 5 3 Haulers Intercepted 2 | . 1 . . . 1 . . Recyclers Shooed 6 | . . . . . 4 . 2 Parts Field Recycled . | . . . . . . . . Retrieved Matter . | . . . . . . . . Parts Self-Destructed . | . . . . . . . . Prevented . | . . . . . . . . Kills | -11 -10 -10 -10 -9 -8 -7 -6 ------- Run | Scr Mat Min Exi Min Mat Fac Fac Combat Hostiles Destroyed 21 | . 4 . . . 13 1 3 Guns 13 | . 4 . . . 8 1 . Cannons 1 | . . . . . . . 1 AOE 5 | . . . . . 5 . . Classes Destroyed 13 | . 3 1 . . 6 3 . Worker 3 | . . . . . 3 . . Builder 2 | . . . . . 2 . . Tunneler 3 | . . 1 . . 2 . . Hauler 2 | . 1 . . . 1 . . Recycler 3 | . . . . . 3 . . Operator 1 | . . . . . . 1 . Watcher 1 | . . . . . . 1 . Swarmer 3 | . 3 . . . . . . Grunt 10 | . 1 . . . 7 . 2 Brawler 2 | . . . . . 1 . 1 Sentry 3 | . . . . . 3 . . Hunter 2 | . . . . . 2 . . Programmer 1 | . . . . . . 1 . Best Kill Streak 11 | . 5 1 . . 11 1 3 Combat Bots Only 4 | . 4 . . . 4 1 3 Max Kills in Single Turn 3 | . 1 1 . . 3 1 1 Gunslinging . | . . . . . . . . Exploded 2 | . . . . . 2 . . Melee . | . . . . . . . . Uniques/NPCs Destroyed . | . . . . . . . . Combat | -11 -10 -10 -10 -9 -8 -7 -6 -------- Run | Scr Mat Min Exi Min Mat Fac Fac Damage Taken 3477 | . 137 23 . . 799 428 2090 Core 1013 | . 57 . . . 64 31 861 Absorbed by Shields . | . . . . . . . . Core Remaining (%) 90 | 100 . . . 77 88 95 . Volleys Fired 89 | . 13 1 . . 45 19 11 Largest 3 | . 2 2 . . 3 3 3 Hottest 203 | . 70 70 . . 118 118 203 Shots Fired 223 | . 26 2 . . 115 54 26 Gun 194 | . 26 2 . . 105 54 7 Cannon 19 | . . . . . . . 19 Launcher 10 | . . . . . 10 . . Special . | . . . . . . . . Kinetic 124 | . 13 1 . . 62 36 12 Thermal 70 | . 13 1 . . 35 18 3 Explosive 10 | . . . . . 10 . . Electromagnetic 19 | . . . . . 8 . 11 Robot Hit Streak 11 | . 6 1 . . 11 6 7 Robot Miss Streak 6 | . 6 . . . 4 6 3 Penetration Max 1 | . . . . . 1 . . Secondary Targets 4 | . 1 . . . 3 . . Max Gunslinging Chain 1 | . 1 . . . 1 . . Shots Hit Robots 136 | . 14 1 . . 72 28 21 Core Hits 75 | . 8 1 . . 46 5 15 Critical Hits 1 | . . . . . 1 . . Critical Kills . | . . . . . . . . Critical Parts Destroyed 1 | . . . . . 1 . . Melee Attacks . | . . . . . . . . Impact . | . . . . . . . . Slashing . | . . . . . . . . Piercing . | . . . . . . . . Sneak Attacks . | . . . . . . . . Combat Hostiles . | . . . . . . . . Follow-up Attacks . | . . . . . . . . Damage Inflicted 3239 | . 145 12 . . 2051 454 577 Guns 1693 | . 145 12 . . 1062 422 52 Cannons 389 | . . . . . . . 389 Explosions 1113 | . . . . . 989 . 124 Melee . | . . . . . . . . Ramming 44 | . . . . . . 32 12 Kinetic 1197 | . 47 . . . 698 268 184 Thermal 669 | . 98 12 . . 391 154 14 Explosive 869 | . . . . . 869 . . Electromagnetic 460 | . . . . . 93 . 367 Impact . | . . . . . . . . Slashing . | . . . . . . . . Piercing . | . . . . . . . . Highest Corruption 2 | . . . . . . 2 . Average Corruption 1 | . . . . . . 1 . Corruption Purged . | . . . . . . . . Effects 1 | . . . . . . 1 . Weapon Failures 1 | . . . . . . 1 . Overload Shots . | . . . . . . . . Overflow Damage 77 | . . . . . 45 17 15 Projectiles 15 | . . . . . . . 15 Explosions 45 | . . . . . 45 . . Melee 17 | . . . . . . 17 . Knockbacks 3 | . . . . . . . 3 Impact . | . . . . . . . . Kinetic 3 | . . . . . . . 3 Secondary . | . . . . . . . . Self-Inflicted Damage 174 | . . . . . 148 16 10 Shots 5 | . . . . . 4 . 1 Rammed 2 | . . . . . . 1 1 Targets Rammed 2 | . . . . . . 1 1 Kicked . | . . . . . . . . Crushed . | . . . . . . . . Highest Temperature 451 | . 100 30 . . 451 426 162 Average Temperature 133 | . 48 18 . . 137 188 66 Received Heat Transfer 600 | . 18 . . . 252 . 330 Effects 10 | . . . . . 5 5 . Shutdowns 7 | . . . . . 5 2 . Energy Bleed 3 | . . . . . . 3 . Siege Activations . | . . . . . . . . Robots Corrupted 2 | . . . . . . . 2 Combat Hostiles 2 | . . . . . . . 2 Parts Fried 1 | . . . . . . . 1 Impact Corruptions 1 | . . . . . . 1 . Robots Melted . | . . . . . . . . Combat Hostiles . | . . . . . . . . Parts Melted 4 | . 2 . . . 2 . . Heat Transferred 1606 | . 296 37 . . 903 333 37 Parts Sabotaged . | . . . . . . . . Parts Stolen . | . . . . . . . . Parts Stripped . | . . . . . . . . Power Chain Reactions 1 | . . . . . 1 . . Missiles Intercepted . | . . . . . . . . Alert | -11 -10 -10 -10 -9 -8 -7 -6 ------- Run | Scr Mat Min Exi Min Mat Fac Fac Peak Influence 427 | . 150 63 . . 427 148 126 Initial 126 | . . 58 . . . 126 14 Average 88 | . 73 59 . . 172 58 50 Maximum Alert Level 2 | . . . . . 2 . . Low Security (%) 87 | 100 100 100 . 100 59 100 100 Level 1 9 | . . . . . 32 . . Level 2 2 | . . . . . 8 . . Level 3 . | . . . . . . . . Level 4 . | . . . . . . . . Level 5 . | . . . . . . . . High Security . | . . . . . . . . Max Security . | . . . . . . . . Squads Dispatched 9 | . 2 . . . 2 1 4 Investigation 2 | . 1 . . . 1 . . Extermination 2 | . . . . . . 1 1 Reinforcement 3 | . 1 . . . 1 . 1 Assault . | . . . . . . . . Garrison 2 | . . . . . . . 2 Intercept . | . . . . . . . . Construction Impeded 1 | . . . . . . . 1 Haulers Reinforced . | . . . . . . . . Stealth | -11 -10 -10 -10 -9 -8 -7 -6 --------- Run | Scr Mat Min Exi Min Mat Fac Fac Distress Signals 8 | . 1 . . . 5 . 2 Communications Jammed . | . . . . . . . . Distress Signals . | . . . . . . . . Times Spotted 57 | . 8 5 . . 23 5 16 Peak Tracking Total 9 | . 4 7 . . 6 2 9 Tactical Retreats 5 | . 1 . . . 2 . 2 Traps | -11 -10 -10 -10 -9 -8 -7 -6 ------- Run | Scr Mat Min Exi Min Mat Fac Fac Traps Triggered 2 | . . . . . . . 2 Indirectly . | . . . . . . . . Trap Hack Attempts . | . . . . . . . . Triggered . | . . . . . . . . Disarmed . | . . . . . . . . Reprogrammed . | . . . . . . . . Reused . | . . . . . . . . Traps Extracted . | . . . . . . . . Installed . | . . . . . . . . Triggered . | . . . . . . . . Machines | -11 -10 -10 -10 -9 -8 -7 -6 ---------- Run | Scr Mat Min Exi Min Mat Fac Fac Machines Disabled 3 | . . . . . 2 . 1 Max in Single Turn 1 | . . . . . 1 . 1 Machines Sabotaged . | . . . . . . . . Garrisons Compromised . | . . . . . . . . Overloaded Fab Kills . | . . . . . . . . Fab Network Shutdowns . | . . . . . . . . Hacking | -11 -10 -10 -10 -9 -8 -7 -6 --------- Run | Scr Mat Min Exi Min Mat Fac Fac Machines Accessed 11 | . 3 1 1 . 3 3 . Terminals 8 | . 2 1 . . 2 3 . Fabricators . | . . . . . . . . Repair Stations 2 | . 1 . . . 1 . . Recycling Units . | . . . . . . . . Scanalyzers . | . . . . . . . . Garrison Access . | . . . . . . . . Total Hacks 21 | . 7 1 1 . 7 5 . Successful 13 | . 4 1 1 . 4 3 . Failed 8 | . 3 . . . 3 2 . Catastrophic 1 | . . . . . 1 . . Database Lockouts . | . . . . . . . . Manual 1 | . . . 1 . . . . Terminals 15 | . 4 1 . . 5 5 . Fabricators . | . . . . . . . . Repair Stations 5 | . 3 . . . 2 . . Recycling Units . | . . . . . . . . Scanalyzers . | . . . . . . . . Garrison Access . | . . . . . . . . Terminal Hacks 10 | . 3 1 1 . 2 3 . Record 2 | . . . 1 . 1 . . Prototype ID Bank 2 | . 1 . . . . 1 . Branch Access Points 1 | . . . . . 1 . . Dispatch Records 2 | . . 1 . . . 1 . Recall Investigation 1 | . . . . . . 1 . Registered Prototypes 1 | . 1 . . . . . . Zone Layout 1 | . 1 . . . . . . Fabricator Hacks . | . . . . . . . . Repair Station Hacks 3 | . 1 . . . 2 . . Scan Component 2 | . 1 . . . 1 . . Repair 1 | . . . . . 1 . . Recycling Unit Hacks . | . . . . . . . . Scanalyzer . | . . . . . . . . Garrison Access Hacks . | . . . . . . . . Unauthorized Hacks . | . . . . . . . . Terminals . | . . . . . . . . Fabricators . | . . . . . . . . Repair Stations . | . . . . . . . . Recycling Units . | . . . . . . . . Scanalyzers . | . . . . . . . . Garrison Access . | . . . . . . . . Data Cores Recovered 1 | . . . . . . 1 . Used 1 | . . . . . . 1 . Hacking Detections 9 | . 2 1 . . 3 3 . Full Trace Events 2 | . 1 . . . 1 . . Feedback Events . | . . . . . . . . Feedback Blocked . | . . . . . . . . Robot Schematics Acquired . | . . . . . . . . Robots Built . | . . . . . . . . Matter . | . . . . . . . . Time . | . . . . . . . . Total Robot Build Rating . | . . . . . . . . Part Schematics Acquired . | . . . . . . . . Parts Built . | . . . . . . . . Matter . | . . . . . . . . Time . | . . . . . . . . Total Part Build Rating . | . . . . . . . . Parts Repaired . | . . . . . . . . Time 26 | . . . . . 26 . . Parts Recycled . | . . . . . . . . Recycled Matter . | . . . . . . . . Retrieved Matter . | . . . . . . . . Retrieved Components . | . . . . . . . . Parts Scanalyzed . | . . . . . . . . Part Schematics Acquired . | . . . . . . . . Parts Damaged . | . . . . . . . . Bothacking | -11 -10 -10 -10 -9 -8 -7 -6 ------------ Run | Scr Mat Min Exi Min Mat Fac Fac Used RIF Installer . | . . . . . . . . Robots Hacked . | . . . . . . . . Non-combat . | . . . . . . . . Combat . | . . . . . . . . Robot Hacks Applied . | . . . . . . . . Relay Couplers Released . | . . . . . . . . Robots Rewired . | . . . . . . . . Allies Hacked . | . . . . . . . . Hacks Repelled . | . . . . . . . . Allies | -11 -10 -10 -10 -9 -8 -7 -6 -------- Run | Scr Mat Min Exi Min Mat Fac Fac Total Allies 3 | . . . . 3 . . . Largest Group 3 | . . . . 3 3 . . Highest-Rated Group 76 | . . . . 76 76 . . Highest-Rated Ally 31 | . . . . 31 31 . . Total Orders . | . . . . . . . . Ally Attacks 27 | . . . . . 27 . . Total Damage 464 | . . . . . 464 . . Kills 4 | . . . . . 4 . . Allies Corrupted . | . . . . . . . . Allies Melted . | . . . . . . . . Intel | -11 -10 -10 -10 -9 -8 -7 -6 ------- Run | Scr Mat Min Exi Min Mat Fac Fac Robot Analysis Total . | . . . . . . . . Derelict Logs Recovered 3 | . . 1 . 2 . . . Drone Launches . | . . . . . . . . Drone Recoveries . | . . . . . . . . Exploration | -11 -10 -10 -10 -9 -8 -7 -6 ------------- Run | Scr Mat Min Exi Min Mat Fac Fac Turns Passed 3097 | 38 179 195 454 175 802 921 333 Spaces Moved 2308 | 31 153 199 500 166 568 504 187 Core 8 | 4 . . . . . . 4 Treads . | . . . . . . . . Legs . | . . . . . . . . Wheels 2300 | 27 153 199 500 166 568 504 183 Hover . | . . . . . . . . Flight . | . . . . . . . . Fastest Speed 50 | 50 90 90 90 90 90 100 100 Average Speed 100 | 89 90 90 90 94 101 104 140 Slowest Speed 850 | 100 90 90 90 100 120 140 850 Overloaded Moves . | . . . . . . . . Propulsion Burnouts . | . . . . . . . . Robots Hopped . | . . . . . . . . Cave-ins Triggered . | . . . . . . . . Exploration Rate (%) 33 | 3 28 34 92 45 40 15 9 Regions Visited 7 Branch Regions 3 Pre-discovered Areas 1 | . . . . 1 . . . Known Exits Taken . | . . . . . . . . Unknown Exits Taken 7 | 1 1 1 1 1 1 1 . Scrap Searched 2 | . . . . 2 . . . Spaces Dug . | . . . . . . . . Terrain Destroyed 78 | . . . . . 78 . . Melee . | . . . . . . . . Projectile 1 | . . . . . 1 . . AOE 77 | . . . . . 77 . . Terrain Rammed . | . . . . . . . . Walls Destroyed . | . . . . . . . . Machines Disabled . | . . . . . . . . Actions | -11 -10 -10 -10 -9 -8 -7 -6 --------- Run | Scr Mat Min Exi Min Mat Fac Fac Total 2908 | 38 170 214 504 183 706 859 234 Wait 410 | . . 9 . 11 48 319 23 Move 2301 | 30 152 198 499 165 567 503 187 Hop . | . . . . . . . . Pick Up 41 | 2 4 2 2 5 18 7 1 Fast Attach 15 | 6 1 . . . 5 . 3 Attach 22 | . . . . . 12 3 7 Detach . | . . . . . . . . Swap 13 | . . 1 1 1 6 4 . Drop 15 | . . 3 2 1 5 3 1 Fire 89 | . 13 1 . . 45 19 11 Melee . | . . . . . . . . Ram 2 | . . . . . . 1 1 Kick . | . . . . . . . . Crush . | . . . . . . . . Escape Stasis . | . . . . . . . . Rewire . | . . . . . . . . Trap . | . . . . . . . . Miscellaneous . | . . . . . . . . Route ------- -11/Scrapyard -10/Materials -10/Mines -10/Exiles (discovered 2 exits: [*Min x2]) -9/Mines -8/Materials -7/Factory -6/Factory History --------- Turn | Location | Event 14 | -11/Scrapyard | Discovered new exit (range 16) 39 | -11/Scrapyard | Entered Materials 179 | -10/Materials | Discovered new exit (range 13) 218 | -10/Materials | Entered Mines 220 | -10/Mines | Assembled infested the area 308 | -10/Mines | Build established: Mutant 339 | -10/Mines | Received a Rocket Launcher from a helpful Derelict 375 | -10/Mines | Met 8R-AWN 402 | -10/Mines | Discovered new exit (range 5) 413 | -10/Mines | Entered Exiles 428 | -10/Exiles | Discovered new exit (range 15) 465 | -10/Exiles | Welcomed by 8R-AWN 477 | -10/Exiles | Met EX-HEX 521 | -10/Exiles | Met EX-DEC 538 | -10/Exiles | Visited The Gauntlet 682 | -10/Exiles | Met EX-BIN 700 | -10/Exiles | Aligned with FarCom system 701 | -10/Exiles | Given EX-Vault access code 726 | -10/Exiles | Opened EX-Vault 733 | -10/Exiles | Found Prototype Device 754 | -10/Exiles | Warned to stay clear of 0b10 Research branches 857 | -10/Exiles | Discovered new exit (range 11) 867 | -10/Exiles | Left Exiles lab with Skeleton Box 867 | -10/Exiles | Entered Mines 872 | -9/Mines | Found a hidden stash of uninstalled traps 937 | -9/Mines | Learned location of Storage (-9) 1028 | -9/Mines | Received a Mining Laser from a helpful Derelict 1033 | -9/Mines | Discovered new exit (range 5) 1042 | -9/Mines | Entered Materials 1042 | -8/Materials | Accompanied by 3 allies 1042 | -8/Materials | Evolved 4 slots: Power x1, Utility x2, Weapon x1 1047 | -8/Materials | Led the pair of lost Derelicts to an unsafe place 1180 | -8/Materials | Build established: Skirmisher 1499 | -8/Materials | Lost 5 parts (2p1n2w) 1633 | -8/Materials | Lost 3 parts (1n2w) 1828 | -8/Materials | Discovered new exit (range 14) 1844 | -8/Materials | Entered Factory 1844 | -7/Factory | Evolved 2 slots: Utility x2 1845 | -7/Factory | Identified Skeleton Box 2035 | -7/Factory | Build established: Scavenger-Skirmisher 2688 | -7/Factory | Discovered new exit (range 15) 2765 | -7/Factory | Entered another Factory area 2765 | -6/Factory | Evolved 2 slots: Propulsion x1, Utility x1 2934 | -6/Factory | Garrison activated, responded to threat 2958 | -6/Factory | Lost 5 parts (1p1u3w) 3040 | -6/Factory | Lost 6 parts (2p1n2u1w) 3071 | -6/Factory | Core integrity fell below 50% 3094 | -6/Factory | Core integrity fell below 20% 3098 | -6/Factory | Destroyed by P-60 Hacker with Shock Rifle Last Messages --------------- K-01 Serf collects debris. Slug penetrates Wall. K-01 Serf destroyed. ALERT: Rogue bot located, Programmers report to Factory Zone 3C. T-07 Excavator is excavating. U-05 Engineer lays Concrete. T-07 Excavator is excavating. U-05 Engineer lays Concrete. Wheel destroyed. Slug penetrates Wall. Proton Cannon destroyed. Penetrated by Slug. Flak Cannon destroyed. Penetrated by Slug. Hcp. Battery destroyed. Penetrated by Slug. Slug penetrates Wall. Imp. Targeting Computer destroyed. Slug penetrates Wall. U-05 Engineer lays Concrete. Map ----- +----------------------------------------------------+ | ?????????????????????????????????????????????????? | | ?????????????????????????????????????????????????? | | ?????????????????????????????????????????????????? | | ?????????????????????????????????????????????????? | | ?????????????????????????????????????????????????? | | ??????????????########???????????????????????????? | | ???????######## ! #???????????????????????????? | | ?# ?? # #???????????????????????????? | | ?#! # #???????????????????????????? | | ?# ? # #???????????????????????????? | | ?# # #???????????????????????????? | | ?# """ """ # #?????????????????s?????????? | | ?# """ """ # ! #?????????????????s?????????? | | ?# """ """ # #########?????????s?????????? | | ?# # ## ?????????s?????????? | | ?# """ """ # ## #??????????????????? | | ?# """ """ # ## """" #??????????????????? | | ?# """ """ # ##! """" #??????????????????? | | ?? ??? #? ?# """" #??????????????????? | | ####+#######+#####+#### """" #??????????????????? | | # """" #??????????????????? | | hh # u"""" #??????????????????? | | + gp #??????????????????? | | # g #??????????????????? | | #gg #??????????????????? | | ### ############### @ #??????????????????? | | ??# #?????????????# #??????????????????? | | ??# #?????????????#!!! #??????????????????? | | ??# #?????????????#!!! #??????????????????? | | ??# #?????????????#!! #??????????????????? | | ??# #?????????????# #??????????????????? | | ??# #?????????????#########??????????????????? | | ??# #????????????????????????????????????????? | | ??# #????????????????????????????????????????? | | ??# #????????????????????????????????????????? | | ??+ #????????????????????????????????????????? | | ??# #????????????????????????????????????????? | | ??# #????????????????????????????????????????? | | ??/ #????????????????????????????????????????? | | ??### ###????????????????????????????????????????? | | ????# #??????????????????????????????????????????? | | ????? ???????????????????????????????????????????? | | ?????????????????????????????????????????????????? | | ?????????????????????????????????????????????????? | | ?????????????????????????????????????????????????? | | ?????????????????????????????????????????????????? | | ?????????????????????????????????????????????????? | | ?????????????????????????????????????????????????? | | ?????????????????????????????????????????????????? | | ?????????????????????????????????????????????????? | +----------------------------------------------------+ Best States ------------- Heat Dissipation 37 Energy Generation 28 Energy Capacity 600 Matter Stores 300 Matter Capacity 300 Sight Range 22 Robot Scan Range 10 Terrain Scan Range 20 Terrain Scan Density 210 Armor Coverage 225 Evasion (%) 42 Targeting Accuracy 6 Item Schematics ----------------- None Robot Schematics ------------------ None Fabricated ------------ Nothing Alien Tech Used ----------------- None Achievements -------------- None Challenges ------------ None Game ------ Seed FlakProtonShredder Manual? 0 Play Time 00:46:30 Cumulative 49.0 hours Start 2022.03.12 @ 14:20:49 End 2022.03.12 @ 15:05:45 Sessions 1 Manual Loads 0 Difficulty Rogue Special Mode None Game No. 37 Rogue 27 Adventurer 0 Explorer 10 Win Type - Total 0 Types 0/0/0/0/0/0/0/0/0 Lore% 38 Gallery% 39 Achievement% 26 Wizard Run 0 Options --------- ASCII 0 Keyboard 0 Movement Numpad Keybinds 0 Fullscreen 1 Font 18/SmallcapsGlow Map View 76x50 Tactical HUD 0 Map Filters NONE Filters NONE Steam 1 RUN: 639500f4-38c7-4338-a65c-93e10ee4d9ee